bitfinex-derivatives/quotes_ETHF0:USTF0_20250824
["timestamp","ask_amount","ask_price","bid_price","bid_amount"]
[1756079571131,1.3393,4783.3,4783.2,1.2359]
[1756079571733,1.3393,4783.3,4782.8,0.6969]
[1756079571933,0.5307,4783.0,4782.9,0.3858]
[1756079572128,0.8086,4782.9,4782.4,0.5912]
[1756079572330,1.3393,4782.5,4782.4,0.3833]
[1756079573234,1.3393,4782.5,4782.4,1.1302]
[1756079573434,0.5808,4783.0,4782.4,1.2359]
[1756079573635,1.3393,4782.9,4782.8,1.1302]
[1756079573936,1.3393,4782.9,4782.8,0.9745]
[1756079574337,1.3393,4782.9,4782.8,0.3833]
[1756079574841,1.3393,4782.9,4782.8,0.7376]
[1756079575237,1.3393,4782.9,4782.8,0.3833]
[1756079576343,0.2278,4782.6,4782.5,1.2359]
[1756079576549,0.3485,4782.8,4782.3,19.428]
[1756079576550,0.3778,4782.9,4782.8,1.2359]
[1756079576835,0.7585,4782.7,4782.6,0.1489]
[1756079577038,1.3393,4782.7,4782.6,0.9745]
[1756079578332,1.3393,4782.7,4782.6,1.2367]
[1756079578529,0.7585,4782.7,4782.6,1.2367]
[1756079578741,0.3778,4782.7,4782.6,1.2367]
[1756079579633,1.3099,4782.7,4782.6,1.1302]
[1756079579838,1.3099,4782.7,4782.6,0.7376]
[1756079580232,40.8,4784.1,4782.6,1.2101]
[1756079580233,0.2324,4783.2,4782.6,1.2101]
[1756079580443,3.2078,4784.0,4783.0,0.5364]
[1756079580635,1.3118,4783.2,4783.1,1.2019]
[1756079581342,0.8569,4783.7,4783.6,0.5364]
[1756079581538,3.2078,4784.0,4783.7,0.559]
[1756079581742,3.2078,4784.0,4783.9,1.2019]
[1756079581937,0.5125,4783.2,4783.1,0.6048]
[1756079582142,1.3118,4783.2,4783.1,0.1554]
[1756079582344,1.3118,4783.2,4783.1,0.3876]
[1756079582646,0.3797,4783.2,4783.1,1.2019]
[1756079583246,0.5254,4783.2,4783.1,1.2019]
[1756079583446,1.3118,4783.2,4783.1,1.2019]
[1756079583746,0.3797,4783.2,4783.1,1.2019]
[1756079583943,0.5254,4783.2,4783.1,1.2019]
[1756079584343,0.7464,4783.2,4783.1,1.2019]
[1756079584843,0.3797,4783.2,4783.1,1.2019]
[1756079585740,3.4417,4783.5,4783.2,0.6655]
[1756079585942,4.5196,4783.5,4783.4,0.9466]
[1756079586150,4.5196,4783.5,4783.1,19.425]
[1756079586347,0.2339,4783.4,4783.1,19.7668]
[1756079586543,0.5125,4783.2,4783.1,20.1544]
[1756079586839,1.3118,4783.2,4783.1,0.9466]
[1756079587346,1.3118,4783.2,4783.1,1.0954]
[1756079587545,1.3118,4783.2,4783.1,0.9466]
[1756079591051,0.7464,4783.2,4783.1,1.2019]
[1756079591245,3.2078,4783.5,4783.1,0.5364]
[1756079591450,3.4417,4783.5,4783.4,1.2019]
[1756079591650,3.2078,4783.5,4783.4,1.2019]
[1756079592447,3.7332,4783.5,4783.4,1.2019]
[1756079592846,4.5196,4783.5,4783.4,1.2019]
[1756079593041,4.5196,4783.5,4783.4,0.1554]
[1756079593247,0.5125,4783.0,4782.9,20.3686]
[1756079593551,1.3118,4783.0,4782.9,20.3686]
[1756079593741,1.3118,4783.0,4782.9,0.9466]
[1756079593943,1.3118,4783.0,4782.9,20.3676]
[1756079594146,1.3118,4783.0,4782.9,20.5164]
[1756079594756,1.3118,4782.6,4782.5,0.9466]
[1756079595351,1.3118,4782.6,4782.5,0.3876]
[1756079595553,1.3118,4782.6,4782.5,0.1554]
[1756079595759,1.3118,4782.4,4782.3,19.421]
[1756079596452,0.4663,4782.3,4782.0,22.846]
[1756079596655,1.3118,4782.1,4782.0,23.2336]
[1756079597057,1.3118,4782.1,4782.0,23.5754]
[1756079598565,0.5669,4782.6,4782.0,4.4097]
[1756079598764,0.6997,4782.1,4782.0,4.4097]
[1756079598964,1.0794,4782.1,4782.0,23.8297]
[1756079599166,0.7464,4782.1,4782.0,23.8297]
[1756079599561,40.8,4782.9,4782.0,23.1642]
[1756079599760,0.5654,4782.8,4782.5,0.5364]
[1756079599961,0.945,4782.8,4782.7,0.6279]
[1756079600163,0.945,4782.8,4782.7,0.7536]
[1756079600164,1.3118,4782.8,4782.7,0.7536]
[1756079600664,1.3118,4782.8,4782.7,0.6048]
[1756079600864,1.3118,4782.8,4782.7,0.3876]
[1756079602566,0.7464,4782.8,4782.7,1.2019]
[1756079602755,3.7332,4783.0,4782.9,0.5364]
[1756079602961,3.9542,4783.0,4782.9,1.2019]
[1756079603161,4.5196,4783.0,4782.9,1.2019]
[1756079605660,3.2078,4783.0,4782.9,1.2019]
[1756079606066,0.2339,4783.4,4783.3,0.5364]
[1756079606268,0.3797,4783.4,4783.3,20.6219]
[1756079606662,3.2078,4783.5,4783.4,1.2019]
[1756079606866,3.2078,4784.1,4783.4,1.2019]
[1756079607065,3.2078,4784.1,4784.0,1.2019]
[1756079607368,3.2078,4784.1,4784.0,20.6219]
[1756079607774,3.2078,4784.8,4784.7,0.5147]
[1756079607968,3.2078,4784.8,4784.7,20.6194]
[1756079608163,3.4432,4784.8,4784.7,20.6194]
[1756079608767,3.675,4784.8,4784.7,20.6194]
[1756079609470,3.2078,4784.8,4784.7,20.6194]
[1756079611070,3.5075,4785.4,4785.3,0.9656]
[1756079611275,4.208,4785.4,4785.3,20.3836]
[1756079611475,4.208,4785.4,4785.3,20.6174]
[1756079611676,3.9747,4785.4,4785.3,20.6174]
[1756079611878,3.7429,4785.4,4785.3,20.6174]
[1756079612080,3.2078,4785.4,4785.3,20.6174]
[1756079614877,3.2078,4785.4,4784.5,3.2078]
[1756079614878,4.3034,4785.4,4784.5,3.2078]
[1756079615078,41.00786493,4787.1,4782.7,3.69624574]
[1756079615079,0.533,4782.8,4782.7,3.69624574]
[1756079615281,3.2078,4783.7,4782.2,3.6586]
[1756079615479,3.2078,4783.2,4782.2,3.6586]
[1756079615680,40.8,4783.1,4782.2,3.5524]
[1756079616384,0.559,4782.4,4782.2,3.5524]
[1756079616583,0.7944,4782.3,4782.2,3.5524]
[1756079617084,0.4672,4782.3,4782.2,3.6586]
[1756079617284,0.7944,4782.3,4782.2,3.5524]
[1756079617482,0.2318,4781.9,4781.3,0.3446]
[1756079617684,0.2354,4781.8,4781.0,22.9794]
[1756079617984,0.7944,4781.7,4781.0,22.9794]
[1756079618185,0.4672,4781.6,4781.0,22.9794]
[1756079618481,0.3272,4781.4,4781.0,22.9794]
[1756079618681,0.7944,4781.3,4781.0,22.9794]
[1756079618882,0.7944,4781.1,4781.0,22.9794]
[1756079619584,0.7944,4781.1,4781.0,23.0856]
[1756079620782,1.0941,4781.1,4781.0,3.2078]
[1756079620983,1.3274,4781.1,4781.0,3.7043]
[1756079621183,1.3274,4781.1,4781.0,3.9209]
[1756079621591,1.3274,4781.1,4781.0,23.3379]
[1756079621783,1.3274,4781.1,4781.0,3.9209]
[1756079621978,1.3274,4781.1,4781.0,3.3597]
[1756079622290,1.0002,4780.5,4780.4,4.1733]
[1756079622582,1.3274,4780.5,4780.4,3.2078]
[1756079623385,0.2354,4780.8,4780.5,0.6846]
[1756079623591,19.417,4782.0,4780.4,3.2078]
[1756079623592,0.2354,4781.4,4781.3,0.5147]
[1756079623789,0.2354,4781.4,4780.8,0.3446]
[1756079623790,0.533,4781.4,4780.8,0.3446]
[1756079623989,1.3274,4780.8,4780.7,0.4965]
[1756079624487,0.2354,4780.8,4780.7,1.1993]
[1756079624790,0.4672,4781.1,4781.0,0.5147]
[1756079624992,0.7684,4780.8,4780.7,0.3446]
[1756079625289,1.3274,4780.8,4780.7,0.4965]
[1756079625588,0.2318,4781.1,4781.0,0.5147]
[1756079625785,3.2078,4781.3,4781.0,1.1993]
[1756079625984,3.5935,4781.3,4781.2,0.9655]
[1756079626182,4.208,4781.3,4781.2,0.9655]
[1756079626386,4.5352,4781.3,4781.2,0.8593]
[1756079627093,4.5352,4781.3,4781.2,0.9655]
[1756079627489,3.2078,4781.3,4781.2,1.1993]
[1756079627685,0.4672,4781.7,4781.3,0.6846]
[1756079627992,1.3274,4781.7,4781.6,0.8593]
[1756079628389,1.3274,4781.7,4781.6,0.7131]
[1756079630294,1.3274,4781.7,4781.6,0.8593]
[1756079631990,1.0002,4781.7,4781.6,0.9655]
[1756079632183,1.0002,4781.7,4781.6,1.1993]
[1756079632388,1.0002,4781.7,4781.6,0.9655]
[1756079632591,1.3274,4781.7,4781.6,0.8593]
[1756079632796,0.7944,4781.6,4781.0,0.3446]
[1756079632989,0.533,4781.1,4780.9,3.2078]
[1756079633185,1.3274,4781.0,4780.9,3.2078]
[1756079633689,1.3274,4781.0,4780.9,3.3597]
[1756079634291,1.3274,4781.0,4780.9,3.7043]
[1756079635398,1.3274,4781.0,4780.9,3.9209]
[1756079635896,1.3274,4781.0,4780.9,4.0671]
[1756079637798,0.7669,4781.0,4780.9,4.4102]
[1756079638893,0.2354,4781.0,4780.9,4.4102]
[1756079639088,0.4699,4781.4,4780.9,4.4102]
[1756079639294,1.3159,4781.9,4781.8,0.3752]
[1756079639494,1.3159,4781.9,4781.8,0.715]
[1756079640196,0.9915,4780.4,4780.3,0.1554]
[1756079640398,0.5216,4779.9,4779.8,0.866]
[1756079640697,0.9915,4779.9,4779.8,1.2091]
[1756079640894,3.4442,4781.0,4780.7,0.5262]
[1756079641089,3.2078,4781.0,4780.9,1.2091]
[1756079641400,0.2335,4781.3,4781.2,0.9726]
[1756079641401,1.3159,4781.3,4781.2,0.9726]
[1756079641600,1.3159,4781.3,4780.8,0.1066]
[1756079641800,0.5216,4781.3,4780.8,0.1066]
[1756079641997,0.2364,4781.2,4780.9,0.9726]
[1756079642197,40.8,4781.7,4780.4,19.422]
[1756079642198,0.758,4781.6,4781.5,0.5262]
[1756079642501,1.3159,4781.6,4781.5,0.715]
[1756079642701,1.3159,4781.6,4781.5,0.866]
[1756079643912,1.3159,4781.6,4781.5,0.715]
[1756079644198,1.3159,4781.2,4781.1,0.5262]
[1756079644393,1.3159,4781.2,4780.7,0.3398]
[1756079644593,1.3159,4780.6,4780.5,0.9726]
[1756079646093,0.4699,4780.9,4780.6,0.6829]
[1756079646297,0.6244,4780.9,4780.8,0.9726]
[1756079646604,1.3159,4780.9,4780.8,0.9726]
[1756079646804,0.758,4780.4,4780.3,0.6328]
[1756079647007,1.3159,4780.4,4780.3,0.9726]
[1756079647407,0.9915,4780.4,4780.3,1.2091]
[1756079648207,0.777,4780.4,4780.3,1.2091]
[1756079648510,0.2364,4780.4,4780.3,1.2091]
[1756079649309,0.5579,4780.8,4780.3,1.2091]
[1756079649504,0.6244,4780.7,4780.6,0.5262]
[1756079649704,0.9915,4780.2,4780.1,0.5262]
[1756079649906,1.0824,4780.7,4780.6,0.5262]
[1756079650101,1.3159,4780.7,4780.1,3.2078]
[1756079650411,0.758,4780.7,4780.6,0.2198]
[1756079650612,1.0824,4780.7,4780.6,0.5596]
[1756079651111,1.3159,4780.7,4780.6,0.5596]
[1756079651409,1.3159,4780.7,4780.6,0.2198]
[1756079651607,1.3159,4780.7,4780.6,0.866]
[1756079651805,0.2364,4780.7,4780.6,1.2091]
[1756079652005,0.9915,4780.7,4780.6,0.9726]
[1756079652410,1.3159,4780.7,4780.6,0.9726]
[1756079652612,1.3159,4780.7,4780.6,0.866]
[1756079653215,1.3159,4780.7,4780.6,0.715]
[1756079654106,0.3244,4780.6,4780.2,0.3431]
[1756079654309,1.3159,4780.4,4780.3,0.3398]
[1756079654511,1.3159,4780.4,4780.3,0.715]
[1756079654705,1.3159,4780.4,4780.3,0.866]
[1756079654902,1.3159,4780.4,4780.3,0.9726]
[1756079656210,1.3159,4780.4,4780.3,0.3398]
[1756079656609,1.3159,4780.4,4780.3,0.715]
[1756079656811,1.3159,4780.4,4780.3,0.866]
[1756079657115,1.3159,4780.4,4779.5,0.5262]
[1756079657116,1.3159,4779.6,4779.5,0.5262]
[1756079657415,1.3159,4779.6,4779.5,0.3752]
[1756079657808,1.3159,4779.6,4779.5,0.9726]
[1756079658206,1.3159,4779.6,4779.5,0.866]
[1756079659015,1.3159,4779.6,4779.5,0.715]
[1756079659210,40.8,4780.7,4779.0,19.455]
[1756079659211,0.5216,4779.1,4779.0,0.5262]
[1756079659424,0.9915,4779.1,4779.0,20.6641]
[1756079659618,0.4699,4779.4,4779.3,0.5262]
[1756079659811,0.4699,4779.4,4779.3,1.2091]
[1756079660118,0.4699,4779.4,4778.8,3.2078]
[1756079660119,0.777,4779.4,4778.8,3.2078]
[1756079660306,0.777,4779.4,4776.4,4.86062797]
[1756079660307,0.5216,4778.4,4777.8,3.2078]
[1756079660506,0.4699,4778.3,4777.8,4.0771]
[1756079660707,0.2364,4778.8,4778.7,0.8695]
[1756079660912,0.4699,4779.2,4778.7,1.2093]
[1756079661118,1.3159,4779.1,4779.0,0.866]
[1756079661610,0.5216,4778.7,4778.0,0.3398]
[1756079661811,0.2335,4779.0,4778.5,1.2093]
[1756079662013,0.2145,4778.9,4778.8,0.2198]
[1756079662213,0.5216,4778.4,4778.3,0.633]
[1756079662517,1.3159,4778.4,4778.3,0.3752]
[1756079662713,1.3159,4778.4,4778.3,0.9728]
[1756079662919,0.777,4778.4,4778.3,1.2093]
[1756079663317,1.3159,4778.4,4778.3,0.9728]
[1756079663518,1.3159,4778.4,4778.3,0.866]
[1756079664412,1.3159,4778.4,4778.3,0.1554]
[1756079664609,0.3071,4778.0,4777.9,3.47]
[1756079664815,1.3159,4778.0,4777.9,4.0296]
[1756079665013,1.3159,4778.0,4777.9,0.9728]
[1756079665419,0.9915,4778.0,4777.9,0.9728]
[1756079665621,1.3159,4778.0,4777.9,0.866]
[1756079665820,1.3159,4778.0,4777.9,0.9728]
[1756079666723,0.9915,4778.0,4777.9,0.9728]
[1756079667016,0.4699,4777.8,4777.4,4.1806]
[1756079667215,0.2364,4777.7,4777.6,0.5262]
[1756079667417,0.4699,4777.7,4777.6,1.2093]
[1756079667723,0.6244,4777.7,4777.6,1.2093]
[1756079667922,0.777,4777.7,4777.6,1.2093]
[1756079668423,1.3382,4777.7,4777.6,0.9728]
[1756079668618,44.0078,4778.9,4777.8,0.3356]
[1756079668812,0.7927,4778.6,4777.8,0.4422]
[1756079669017,0.2155,4778.4,4777.8,0.4422]
[1756079669521,0.7557,4778.4,4778.3,0.1448]
[1756079669720,1.3329,4778.4,4778.3,0.1448]
[1756079670120,1.3329,4778.4,4778.0,0.3356]
[1756079670321,1.3329,4778.2,4778.1,0.7171]
[1756079670524,1.3329,4778.2,4778.1,0.9684]
[1756079670719,0.2305,4778.6,4778.1,1.1894]
[1756079670925,0.7502,4778.5,4778.4,1.1894]
[1756079671121,0.2155,4778.5,4778.4,1.1894]
[1756079671423,1.3329,4778.9,4778.8,0.9684]
[1756079671623,1.3329,4778.9,4778.8,0.8618]
[1756079671825,42.1329,4778.9,4778.8,0.7171]
[1756079672322,0.2305,4778.5,4776.1,3.2078]
[1756079672622,0.446,4776.2,4775.5,0.3356]
[1756079672822,3.2078,4775.8,4775.5,0.2996]
[1756079673025,0.7927,4775.6,4775.5,0.2996]
[1756079673223,3.2078,4775.8,4774.6,3.2078]
[1756079673531,0.2155,4775.6,4774.9,0.52598]
[1756079673819,0.2155,4775.6,4775.0,19.9121]
[1756079674015,3.2078,4776.6,4776.1,0.1071]
[1756079674214,3.2078,4776.6,4776.1,19.854]
[1756079674414,3.2078,4776.6,4776.3,0.1071]
[1756079674624,3.2078,4776.6,4776.4,0.1071]
[1756079674825,3.4383,4776.6,4776.1,19.854]
[1756079675020,0.2305,4776.5,4776.3,0.1071]
[1756079675221,0.2305,4776.5,4776.4,0.3196]
[1756079675522,0.2305,4776.5,4775.6,3.2078]
[1756079675723,0.2305,4776.5,4775.7,20.68851]
[1756079675923,0.2155,4776.4,4775.7,20.68851]
[1756079676117,0.2155,4776.4,4775.8,0.3196]
[1756079676316,0.2155,4776.4,4775.7,0.41881]
[1756079676515,0.2155,4776.1,4775.4,0.1071]
[1756079676925,0.3467,4776.0,4775.4,0.1071]
[1756079677127,0.2155,4775.9,4775.4,0.1071]
[1756079677326,0.446,4775.6,4775.5,0.3196]
[1756079677927,0.2155,4775.6,4775.5,0.4267]
[1756079678318,0.446,4775.6,4775.5,0.4267]
[1756079678524,0.2155,4775.6,4775.5,0.4267]
[1756079679329,0.2155,4775.6,4775.5,0.84553]
[1756079680327,0.2155,4775.6,4775.5,20.75153]
[1756079680720,40.8,4777.4,4775.9,0.41878]
[1756079680721,0.2155,4776.0,4775.9,0.41878]
[1756079680919,0.2155,4776.0,4775.9,0.84548]
[1756079681924,0.2155,4776.0,4775.9,0.4267]
[1756079683529,0.446,4776.0,4775.9,0.4267]
[1756079683732,0.7927,4776.0,4775.9,0.3196]
[1756079683930,3.2078,4776.6,4775.6,0.41881]
[1756079684132,0.2305,4775.6,4775.0,0.4267]
[1756079684334,3.2078,4775.9,4775.0,0.4267]
[1756079684335,0.7927,4775.5,4775.1,20.2016]
[1756079684631,0.7927,4775.3,4775.2,0.3196]
[1756079685029,0.2155,4775.3,4775.2,0.4267]
[1756079685332,0.7927,4775.3,4775.2,0.4267]
[1756079685534,0.446,4775.3,4775.2,0.4267]
[1756079686233,0.7927,4775.3,4775.1,19.882]
[1756079686434,0.7927,4775.2,4775.1,19.882]
[1756079686733,0.7927,4775.2,4775.1,20.2016]
[1756079686933,0.2155,4775.2,4775.1,20.3087]
[1756079687631,0.2155,4775.2,4775.1,20.2797]
[1756079688728,0.2155,4775.8,4775.1,19.853]
[1756079688927,0.2155,4775.8,4775.7,0.41881]
[1756079689135,3.4383,4776.5,4776.3,0.4267]
[1756079689330,3.4383,4776.5,4776.3,19.845]
[1756079689634,3.4383,4776.5,4776.4,0.4267]
[1756079689836,4.0005,4776.5,4776.4,0.3196]
[1756079690036,0.2305,4776.4,4776.3,19.845]
[1756079690229,0.7927,4776.4,4776.3,20.1646]
[1756079690642,0.2155,4776.4,4776.3,20.2717]
[1756079693443,0.2155,4776.4,4776.3,20.6531]
[1756079694959,0.2155,4776.9,4776.8,1.22683]
[1756079695144,0.2155,4776.9,4776.8,21.04783]
[1756079696247,3.2078,4777.0,4776.9,0.8081]
[1756079696450,3.4233,4777.0,4776.9,0.8081]
[1756079697045,0.2155,4777.4,4777.3,0.8081]
[1756079697355,0.2155,4777.4,4777.3,21.02078]
[1756079697850,3.3637,4778.1,4778.0,0.8031]
[1756079698152,4.2843,4778.1,4778.0,19.791]
[1756079698350,4.5176,4778.1,4778.0,19.791]
[1756079699551,1.3098,4777.8,4777.5,19.788]
[1756079699752,1.3098,4777.6,4777.5,19.788]
[1756079699948,1.3098,4777.6,4777.5,20.1073]
[1756079700142,3.3569,4778.1,4778.0,0.3778]
[1756079700349,3.4327,4778.6,4778.4,0.8031]
[1756079700653,3.4327,4779.1,4779.0,0.4253]
[1756079700857,3.666,4779.1,4779.0,0.4253]
[1756079701145,3.2078,4779.1,4778.8,0.3193]
[1756079701345,3.2078,4779.1,4777.6,1.04663]
[1756079701346,7.2078,4779.1,4777.8,19.791]
[1756079701551,0.7862,4779.0,4777.8,19.791]
[1756079701744,0.2333,4778.9,4777.8,19.791]
[1756079701942,3.2078,4778.6,4777.8,19.791]
[1756079702253,0.328,4778.3,4777.4,30.4683]
[1756079702555,0.7862,4778.2,4777.5,19.792]
[1756079702751,3.994,4778.1,4777.5,19.792]
[1756079703050,0.328,4777.4,4776.8,0.3193]
[1756079703252,0.2249,4777.0,4776.9,0.3193]
[1756079703555,0.7862,4777.0,4776.7,0.41873]
[1756079703852,0.7862,4777.0,4776.9,0.3193]
[1756079704253,0.2333,4777.0,4776.9,0.4253]
[1756079704442,0.2333,4777.6,4776.9,2.67677727]
[1756079704647,0.2333,4777.5,4777.4,0.4253]
[1756079704954,0.2333,4777.5,4777.4,20.2333]
[1756079705149,0.7862,4777.5,4777.4,0.3193]
[1756079705350,0.2333,4777.4,4777.1,19.805]
[1756079705553,3.2078,4778.1,4777.1,19.805]
[1756079705755,0.7862,4777.2,4777.1,19.805]
[1756079705949,0.7862,4777.2,4777.1,20.1243]
[1756079708952,0.7862,4777.2,4777.1,20.2303]
[1756079709851,0.4582,4777.2,4777.1,20.2303]
[1756079710756,0.2249,4778.2,4777.7,0.4253]
[1756079710961,3.2078,4778.6,4777.7,19.771]
[1756079711151,0.2333,4778.3,4777.7,19.771]
[1756079711356,0.4582,4778.2,4777.7,19.771]
[1756079711659,3.2078,4778.6,4777.7,20.0903]
[1756079711860,0.328,4777.6,4776.8,0.3193]
[1756079712060,0.5529,4777.4,4776.8,0.3193]
[1756079712261,0.7862,4777.2,4776.9,0.3193]
[1756079712457,0.7862,4777.1,4776.7,19.766]
[1756079712757,0.2333,4777.1,4777.0,0.4253]
[1756079712951,0.7862,4777.1,4776.7,19.766]
[1756079713151,0.7862,4777.5,4776.7,19.766]
[1756079713354,0.7862,4777.4,4776.7,19.766]
[1756079713563,0.7862,4777.3,4776.7,19.766]
[1756079713755,0.5529,4777.1,4776.8,0.3193]
[1756079713961,0.328,4777.5,4776.7,19.766]
[1756079714158,0.2333,4777.4,4776.9,0.3193]
[1756079714462,0.2249,4777.4,4776.9,0.41872]
[1756079714658,0.2333,4777.2,4776.9,0.4253]
[1756079714858,3.2078,4777.6,4776.8,0.106]
[1756079715059,3.2078,4777.6,4776.9,0.41871]
[1756079715264,0.5529,4777.4,4777.1,0.4253]
[1756079715454,0.2333,4777.3,4776.8,0.4253]
[1756079715660,0.2333,4777.5,4776.9,0.41871]
[1756079715860,3.4327,4777.6,4777.1,0.4187]
[1756079716065,3.4327,4777.6,4777.3,0.4253]
[1756079716261,3.2078,4777.6,4776.7,19.766]
[1756079716661,3.2078,4777.6,4777.4,0.41867]
[1756079716858,0.2333,4777.6,4777.5,0.4253]
[1756079718657,0.2249,4778.1,4777.4,0.41867]
[1756079718658,0.2333,4778.1,4777.4,0.4253]
[1756079718961,0.2333,4778.0,4777.9,0.4253]
[1756079719157,0.2333,4778.0,4777.9,20.1663]
[1756079719866,3.4411,4778.3,4777.9,19.741]
[1756079720066,3.2078,4778.3,4778.2,0.84391]
[1756079720761,0.2333,4778.7,4778.6,0.41857]
[1756079720966,0.2333,4778.7,4778.6,20.1583]
[1756079723361,0.2333,4778.7,4778.6,20.5361]
[1756079724870,3.2078,4779.2,4779.1,0.3778]
[1756079725062,3.4411,4779.2,4779.1,20.5081]
[1756079726463,3.4411,4779.2,4779.1,20.92663]
[1756079726464,3.2078,4779.2,4779.1,20.92663]
[1756079728671,3.4391,4779.2,4779.1,20.92663]
[1756079729069,3.2078,4779.2,4779.1,20.92663]
[1756079730474,0.2313,4779.7,4779.6,0.3691]
[1756079730673,0.2313,4779.7,4779.6,20.4717]
[1756079731365,0.2313,4779.7,4779.6,20.89018]
[1756079732177,0.2313,4779.7,4779.6,20.4717]
[1756079733270,0.2313,4779.7,4779.6,20.64152861]
[1756079734075,0.2313,4779.7,4779.6,20.4717]
[1756079735978,0.2313,4779.7,4779.6,20.64033677]
[1756079736476,0.2313,4779.7,4779.6,20.4717]
[1756079736975,0.2313,4779.7,4779.6,20.63593281]
[1756079738172,0.2313,4780.3,4780.2,1.21283]
[1756079738470,0.2313,4780.3,4780.2,20.83883]
[1756079741969,0.2313,4780.8,4780.7,0.57059]
[1756079742165,0.2313,4780.8,4780.7,20.81179]
[1756079742877,0.2313,4781.3,4781.2,1.21274]
[1756079743176,0.2313,4781.3,4781.2,20.80574]
[1756079743376,0.2313,4781.3,4781.2,20.3874]
[1756079747482,0.5216,4780.7,4780.6,0.4757]
[1756079747682,1.2931,4780.7,4780.6,20.2558]
[1756079749284,1.2931,4780.7,4780.6,20.3624]
[1756079749676,1.2931,4780.7,4780.6,20.2558]
[1756079750782,1.2931,4780.7,4780.6,20.3624]
[1756079750980,0.2148,4781.2,4780.7,0.41838]
[1756079751180,0.3676,4781.2,4781.1,0.7944]
[1756079751481,0.7364,4781.2,4781.1,0.7944]
[1756079751680,1.2931,4781.2,4781.1,20.3434]
[1756079755587,0.2313,4781.2,4781.1,20.3434]
[1756079756989,1.2931,4781.2,4781.1,20.3434]
[1756079757184,1.2931,4781.2,4781.1,0.6878]
[1756079757388,1.2931,4781.2,4781.1,19.524]
[1756079757788,1.2931,4781.2,4780.7,0.4253]
[1756079757789,0.5244,4780.8,4780.7,0.3187]
[1756079757990,1.3398,4780.8,4780.3,0.1066]
[1756079758182,0.5244,4780.3,4780.2,3.7466]
[1756079758382,1.3398,4780.3,4780.2,3.7466]
[1756079758589,1.3398,4780.3,4780.2,3.9035]
[1756079759787,1.3398,4780.3,4780.2,0.6957]
[1756079760085,1.3398,4780.2,4780.1,19.514]
[1756079761385,1.3398,4780.2,4780.1,19.8328]
[1756079761582,0.8154,4780.1,4779.3,0.3188]
[1756079761790,1.3398,4779.4,4779.3,0.22]
[1756079762491,1.3398,4779.4,4779.3,0.6957]
[1756079762691,1.3398,4779.4,4779.3,0.8023]
[1756079763294,1.3398,4779.4,4779.1,19.504]
[1756079763489,1.3398,4779.3,4779.2,0.4757]
[1756079763686,1.3398,4779.3,4779.2,0.8023]
[1756079766094,1.3398,4779.3,4779.2,0.22]
[1756079766990,1.3398,4779.2,4779.1,19.504]
[1756079767590,1.3398,4779.2,4779.1,19.8228]
[1756079767888,1.3398,4779.2,4779.1,20.0428]
[1756079768488,1.3398,4779.2,4779.1,19.504]
[1756079768792,1.3398,4778.8,4778.7,19.5]
[1756079768995,1.3398,4778.1,4778.0,0.8023]
[1756079769196,1.3398,4778.1,4778.0,20.3023]
[1756079772394,0.235,4778.1,4778.0,20.3023]
[1756079772602,0.235,4779.0,4778.9,0.3769]
[1756079772801,0.235,4779.0,4778.9,19.8779]
[1756079773092,0.3925,4779.0,4778.9,0.3769]
[1756079773288,1.3398,4779.0,4778.9,19.8779]
[1756079773494,1.3398,4779.0,4778.9,20.3033]
[1756079773698,0.9904,4779.0,4778.9,20.3033]
[1756079775004,0.8154,4778.8,4778.7,0.6454]
[1756079775197,0.6235,4778.8,4778.7,0.8023]
[1756079775503,0.3925,4778.8,4778.7,0.8023]
[1756079777606,0.6235,4778.8,4778.7,0.8023]
[1756079778007,0.235,4778.8,4778.7,0.8023]
[1756079778810,0.9904,4778.8,4778.7,0.8023]
[1756079781210,1.3398,4778.8,4778.7,0.1569]
[1756079781411,1.3398,4778.8,4778.7,19.503]
[1756079781911,1.3398,4778.8,4778.3,0.4254]
[1756079782213,1.3398,4778.2,4778.1,19.8218]
[1756079782608,1.3398,4778.2,4778.1,20.1987]
[1756079785009,1.3398,4778.2,4778.1,20.3053]
[1756079786125,0.231,4778.7,4778.2,0.41861]
[1756079786413,0.231,4778.7,4778.6,0.8023]
[1756079786618,3.2078,4778.9,4778.6,20.3053]
[1756079786821,0.235,4778.8,4778.7,0.8023]
[1756079792124,0.3494,4779.4,4778.7,0.8023]
[1756079792426,1.0909,4779.9,4779.8,0.7952]
[1756079792719,0.8658,4779.9,4779.7,19.2972]
[1756079792923,0.2218,4779.8,4779.7,19.2972]
[1756079793114,3.2078,4780.0,4779.8,0.41847]
[1756079793320,0.2218,4779.9,4779.8,0.41847]
[1756079794318,3.2078,4780.0,4779.8,0.41847]
[1756079794520,0.2218,4780.4,4780.2,0.41843]
[1756079794726,0.9845,4780.4,4780.3,19.5]
[1756079795124,0.4469,4780.4,4780.3,19.5]
[1756079796723,0.2218,4780.4,4780.3,19.5]
[1756079797127,0.2218,4780.7,4780.6,0.4184]
[1756079797527,3.2078,4781.0,4780.3,19.5]
[1756079797729,3.2078,4781.0,4780.8,0.41838]
[1756079797924,3.2078,4781.0,4780.9,19.499]